Cogmind - Beta 14 @@@ ROGUE MODE // 2024.08.14 @ 07:33:45 Player: Lillith Result: Destroyed by OS-ZXE(R) with Subdweller Machine Gun Performance ------------- Evolutions (0) 0 Regions Visited (2) 400 Robots Destroyed (15) 75 Value Destroyed (369) 369 Prototype IDs (0) 0 Alien Tech Used (0) 0 Bonus (0) 0 TOTAL SCORE: 844 Bonus ------- None Cogmind --------- Core Integrity 0/250 Matter 164/300 Energy 93/200 System Corruption 2% Temperature Cool (0) Movement Rolling (145) Ox3 Location -10/Subcaves Parts ------- > --- POWER (1) -------- Subdweller Power Source > --- PROPULSION (2) --- Wheel Compact Wheel > --- UTILITY (2) ------ Heat Sink High-capacity Storage Unit > --- WEAPON (2) ------- Battle Rifle Subdweller Machine Gun > --- INVENTORY (20) --- Light Treads High-capacity Matter Pod (200) Medium Laser Medium Laser Battle Rifle Light Cannon Light Cannon Grenade Launcher Grenade Launcher Peak State ------------ > --- POWER ------------ Subdweller Power Source > --- PROPULSION ------- Wheel Compact Wheel > --- UTILITY ---------- Heat Sink High-capacity Storage Unit > --- WEAPON ----------- Battle Rifle Subdweller Machine Gun > --- INVENTORY -------- Light Treads High-capacity Matter Pod Medium Laser Medium Laser Battle Rifle Light Cannon Light Cannon Grenade Launcher Grenade Launcher [Rating: 11] Favorites ----------- Power Ion Engine Engine Ion Engine Propulsion Light Treads Treads Light Treads Wheel Wheel Utility Transport Network Coupler Device Heat Sink Storage High-capacity Storage Unit Processor Transport Network Coupler Protection Light Armor Plating Weapon Light Cannon Energy Gun Medium Laser Ballistic Gun Battle Rifle Ballistic Cannon Light Cannon Build | -11 -10 -10 ------- Run | Yrd Mat Sub Slots Evolved . | . . . Power . | . . . Propulsion . | . . . Utility . | . . . Weapon . | . . . Parts Attached 24 | 6 8 10 Power 3 | 1 . 2 Engine 3 | 1 . 2 Core . | . . . Reactor . | . . . Propulsion 5 | 2 . 3 Treads 3 | 2 . 1 Leg . | . . . Wheel 2 | . . 2 Hover . | . . . Flight . | . . . Utility 8 | 1 5 2 Device 2 | . 1 1 Storage 4 | 1 3 . Processor 1 | . 1 . Hackware . | . . . Protection 1 | . . 1 Artifact . | . . . Weapon 8 | 2 3 3 Energy Gun 3 | 2 1 . Energy Cannon . | . . . Ballistic Gun 3 | . . 3 Ballistic Cannon 2 | . 2 . Launcher . | . . . Special Weapon . | . . . Impact Weapon . | . . . Slashing Weapon . | . . . Piercing Weapon . | . . . Special Melee Weapon . | . . . Unidentified Prototypes . | . . . Parts Lost 4 | . . 4 Power 2 | . . 2 Propulsion 1 | . . 1 Utility 1 | . . 1 Weapon . | . . . Highest Loss Streak 1 | . . 1 To Critical Strikes . | . . . Average Slot Usage (%) 99 | . 99 99 Engine 13 | . 14 13 Treads 23 | . 28 12 Wheel 4 | . . 15 Device 3 | . . 11 Storage 14 | . 14 14 Processor 9 | . 13 . Energy Gun 3 | . 4 . Ballistic Gun 6 | . . 20 Ballistic Cannon 18 | . 23 7 Peak Build Rating 11 | 6 8 11 Average Rating 7 | 4 7 9 On Entrance 4 | . 6 8 Naked Turns . | . . . Heaviest Build 54 | 14 51 54 Greatest Support 40 | 40 40 40 Greatest Overweight (x) 4 | 3 1 4 Average Overweight (x) . | . . 2 Largest Inventory Capacity 20 | 8 20 20 Average Capacity 15 | 7 13 20 Most Carried 11 | 3 11 11 Average Carried 8 | 1 8 9 Final Capacity 20 | 8 20 20 Final Carried 11 | 3 11 9 Class Distribution -------------------- 100% | Mutant Dominant Class ---------------- Mutant | -10/Materials Mutant | -10/Subcaves Resources | -11 -10 -10 ----------- Run | Yrd Mat Sub Matter Collected 901 | 260 498 143 Remotely . | . . . Salvage Created 365 | . 365 . Parts 21 | . 21 . Haulers Intercepted 2 | . 2 . Recyclers Shooed . | . . . Parts Field Recycled . | . . . Retrieved Matter . | . . . Parts Self-Destructed 10 | . . 10 Prevented . | . . . Kills | -11 -10 -10 ------- Run | Yrd Mat Sub Combat Hostiles Destroyed 12 | . 12 . Guns 2 | . 2 . Cannons 10 | . 10 . Classes Destroyed 4 | . 4 . Hauler 2 | . 2 . Watcher 1 | . 1 . Swarmer 3 | . 3 . Grunt 9 | . 9 . Best Kill Streak 3 | . 3 . Combat Bots Only 3 | . 3 . Max Kills in Single Turn 1 | . 1 . Gunslinging . | . . . Exploded . | . . . Melee . | . . . Uniques/NPCs Destroyed . | . . . Combat | -11 -10 -10 -------- Run | Yrd Mat Sub Hostile Shots Fired 96 | . 34 62 Missed 22 | . 7 15 Damage Taken 1295 | . 287 1008 Core 253 | . 89 164 Absorbed by Shields . | . . . Core Remaining (%) 100 | 100 . . Volleys Fired 55 | . 35 20 Largest 2 | . 2 2 Hottest 90 | . 90 70 Shots Fired 110 | . 70 40 Gun 26 | . 12 14 Cannon 84 | . 58 26 Launcher . | . . . Special . | . . . Kinetic 98 | . 58 40 Thermal 12 | . 12 . Explosive . | . . . Electromagnetic . | . . . Robot Hit Streak 14 | . 9 14 Robot Miss Streak 2 | . 2 1 Penetration Max . | . . . Secondary Targets . | . . . Shots Hit Robots 69 | . 49 20 Core Hits 21 | . 19 2 Critical Kills . | . . . Critical Parts Destroyed . | . . . Critical Strikes 4 | . 4 . Burn 1 | . 1 . Blast 3 | . 3 . Melee Attacks . | . . . Impact . | . . . Slashing . | . . . Piercing . | . . . Sneak Attacks . | . . . Combat Hostiles . | . . . Follow-up Attacks . | . . . Damage Inflicted 1018 | . 869 149 Guns 100 | . 100 . Cannons 918 | . 769 149 Explosions . | . . . Melee . | . . . Ramming . | . . . Kinetic 918 | . 769 149 Thermal 100 | . 100 . Explosive . | . . . Electromagnetic . | . . . Impact . | . . . Slashing . | . . . Piercing . | . . . Highest Corruption 2 | . 2 2 Average Corruption 2 | . 2 2 Corruption Purged . | . . . Corruption Blocked . | . . . Effects 22 | . 10 12 Message Errors 4 | . 2 2 Matter Fused 7 | . 4 3 Heat Flow Errors 3 | . . 3 Energy Discharges 4 | . 1 3 Parts Rejected 1 | . . 1 Data Loss (minor) 2 | . 2 . Data Loss (major) 1 | . 1 . Overload Shots . | . . . Overflow Damage . | . . . Projectiles . | . . . Explosions . | . . . Melee . | . . . Knockbacks 14 | . 9 5 Impact . | . . . Kinetic 14 | . 9 5 Secondary . | . . . Self-Inflicted Damage . | . . . Shots . | . . . Rammed 1 | . 1 . Targets Rammed 1 | . 1 . Kicked . | . . . Crushed . | . . . Highest Temperature 124 | . 108 124 Average Temperature 26 | . 24 59 Received Heat Transfer 189 | . 108 81 Siege Activations . | . . . Robots Corrupted . | . . . Combat Hostiles . | . . . Parts Fried . | . . . Impact Corruptions . | . . . Robots Melted . | . . . Combat Hostiles . | . . . Parts Melted 2 | . 2 . Heat Transferred 322 | . 322 . Parts Sabotaged . | . . . Parts Stolen . | . . . Parts Stripped . | . . . Power Chain Reactions . | . . . Alert | -11 -10 -10 ------- Run | Yrd Mat Sub Peak Influence 230 | . 230 . Initial . | . . . Average 101 | . 106 . Maximum Alert Level 1 | . 1 . Low Security (%) 91 | 100 91 . Level 1 8 | . 8 . Level 2 . | . . . Level 3 . | . . . Level 4 . | . . . Level 5 . | . . . High Security . | . . . Max Security . | . . . Squads Dispatched 3 | . 3 . Investigation 3 | . 3 . Extermination . | . . . Reinforcement . | . . . Assault . | . . . Garrison . | . . . Intercept . | . . . Searches Triggered . | . . . Construction Impeded . | . . . Haulers Reinforced . | . . . Active Scanning Responses . | . . . Cargo Convoy Interrupts . | . . . Stealth | -11 -10 -10 --------- Run | Yrd Mat Sub Distress Signals 1 | . 1 . Communications Jammed . | . . . Distress Signals . | . . . Times Spotted 33 | . 27 6 Peak Tracking Total 4 | . 4 2 Tactical Retreats 2 | . 2 . Traps | -11 -10 -10 ------- Run | Yrd Mat Sub Traps Triggered 1 | . 1 . Indirectly . | . . . Trap Hack Attempts . | . . . Triggered . | . . . Disarmed . | . . . Reprogrammed . | . . . Reused . | . . . Traps Extracted . | . . . Installed . | . . . Triggered . | . . . Machines | -11 -10 -10 ---------- Run | Yrd Mat Sub Machines Disabled . | . . . Max in Single Turn . | . . . Machines Repaired . | . . . Machines Dismantled . | . . . Machines Sabotaged . | . . . Overloaded Fab Kills . | . . . Hacking | -11 -10 -10 --------- Run | Yrd Mat Sub Machines Accessed 8 | . 8 . Terminals 7 | . 7 . Fabricators . | . . . Repair Stations . | . . . Recycling Units 1 | . 1 . Scanalyzers . | . . . Garrison Access . | . . . Total Hacks 20 | . 20 . Successful 12 | . 12 . Failed 7 | . 7 . Catastrophic 2 | . 2 . Database Lockouts 1 | . 1 . Manual 34 | . 34 . Terminals 18 | . 18 . Fabricators . | . . . Repair Stations . | . . . Recycling Units 2 | . 2 . Scanalyzers . | . . . Garrison Access . | . . . Terminal Hacks 5 | . 5 . Robot Analysis 2 | . 2 . Branch Access Points 1 | . 1 . Scanalyzer Index 1 | . 1 . Zone Layout 1 | . 1 . Fabricator Hacks . | . . . Repair Station Hacks . | . . . Recycling Unit Hacks . | . . . Scanalyzer . | . . . Garrison Access Hacks . | . . . Unauthorized Hacks 7 | . 7 . Terminals 5 | . 5 . Botnet 5 | . 5 . Fabricators . | . . . Repair Stations . | . . . Recycling Units 2 | . 2 . Reject 1 | . 1 . Mask 1 | . 1 . Scanalyzers . | . . . Garrison Access . | . . . Data Cores Recovered . | . . . Used . | . . . Hacking Detections 7 | . 7 . Full Trace Events 6 | . 6 . Feedback Events . | . . . Feedback Blocked . | . . . Robot Schematics Acquired . | . . . Robots Built . | . . . Authchips . | . . . Time . | . . . Total Robot Build Rating . | . . . Part Schematics Acquired . | . . . Parts Built . | . . . Authchips . | . . . Time . | . . . Total Part Build Rating . | . . . Parts Repaired . | . . . Time . | . . . Parts Recycled . | . . . Recycled Matter . | . . . Retrieved Matter . | . . . Retrieved Components . | . . . Parts Scanalyzed . | . . . Part Schematics Acquired . | . . . Parts Damaged . | . . . Bothacking | -11 -10 -10 ------------ Run | Yrd Mat Sub Used RIF Installer . | . . . Robots Hacked . | . . . Non-combat . | . . . Combat . | . . . Robot Hacks Applied . | . . . Relay Couplers Released . | . . . Fabnet Peak Effective % . | . . . Robots Rewired . | . . . Allies Hacked . | . . . Hacks Repelled . | . . . Allies | -11 -10 -10 -------- Run | Yrd Mat Sub Total Allies . | . . . Largest Group . | . . . Highest-Rated Group . | . . . Highest-Rated Ally . | . . . Total Orders . | . . . Ally Attacks . | . . . Total Damage . | . . . Kills . | . . . Allies Corrupted . | . . . Allies Melted . | . . . Intel | -11 -10 -10 ------- Run | Yrd Mat Sub Robot Analysis Total 2 | . 2 . Derelict Logs Recovered 1 | . . 1 Drone Launches . | . . . Drone Recoveries . | . . . Exploration | -11 -10 -10 ------------- Run | Yrd Mat Sub Turns Passed 2231 | 75 1533 623 Spaces Moved 1053 | 40 690 323 Core 12 | 12 . . Treads 795 | 28 690 77 Legs . | . . . Wheels 246 | . . 246 Hover . | . . . Flight . | . . . Fastest Speed 50 | 50 160 130 Average Speed 173 | 160 176 166 Slowest Speed 320 | 200 240 320 Overloaded Moves . | . . . Propulsion Burnouts . | . . . Robots Hopped . | . . . Cave-ins Triggered . | . . . Exploration Rate (%) 35 | 5 88 14 Regions Visited 2 Branch Regions 1 Pre-discovered Areas 2 | . . 2 Known Exits Taken . | . . . Unknown Exits Taken 2 | 1 1 . Scrap Searched . | . . . Spaces Dug . | . . . Terrain Destroyed . | . . . Melee . | . . . Projectile . | . . . AOE . | . . . Terrain Rammed . | . . . Walls Destroyed . | . . . Machines Disabled . | . . . Actions | -11 -10 -10 --------- Run | Yrd Mat Sub Total 1352 | 48 935 369 Wait 196 | . 186 10 Move 1051 | 39 689 323 Hop . | . . . Pick Up 12 | 3 8 1 Fast Attach 12 | 6 3 3 Attach 8 | . 1 7 Detach 8 | . 3 5 Swap 4 | . 4 . Drop 5 | . 5 . Fire 55 | . 35 20 Melee . | . . . Ram . | . . . Kick . | . . . Crush 1 | . 1 . Escape Stasis . | . . . Rewire . | . . . Trap . | . . . Miscellaneous . | . . . Route ------- -11/Scrapyard -10/Materials (discovered 6 exits: [*Mat x3] / *Min x2 / [*Sub]) -10/Subcaves History --------- Turn | Location | Event 25 | -11/Scrapyard | Discovered new exit (range 16) 76 | -11/Scrapyard | Entered Materials 117 | -10/Materials | Central database locked down 315 | -10/Materials | Discovered new exit (range 13) 324 | -10/Materials | Build established: Mutant 362 | -10/Materials | Identified exit to Mines 1016 | -10/Materials | Discovered new exit (range 8) 1295 | -10/Materials | Discovered new exit (range 6) 1583 | -10/Materials | Discovered new exit (range 2) 1609 | -10/Materials | Entered Subcaves 1655 | -10/Subcaves | Learned location of Zion (-6) 1655 | -10/Subcaves | Met a Zionite searching for "candidates" 1724 | -10/Subcaves | Core integrity fell below 50% 1843 | -10/Subcaves | Core integrity fell below 20% 2103 | -10/Subcaves | A swath of the cavern ceiling suddenly collapsed 2170 | -10/Subcaves | Ambushed by Subdwellers from Twisted Machinery 2232 | -10/Subcaves | Destroyed by OS-ZXE(R) with Subdweller Machine Gun Last Messages --------------- 01868_ Acquired 54 matter. 01874_ Subatomizers dissect the Disposable Heat Sink. 01876_ System corrupted: Energy discharge (-46). 01886_ Subatomizers dissect the Disposable Heat Sink. 01886_ Acquired 3 matter. 01889_ Acquired 10 matter. 01896_ Subatomizers dissect the Disposable Heat Sink. 01918_ Acquired derelict log, extracted data. World map confirmed: -6/Zion. 01960_ System corrupted: Heat flow error (+116). 01984_ System corrupted: Matter fused (-6). 02051_ System corrupted: Energy discharge (-32). A swath of the cavern ceiling suddenly collapses. 02128_ System corrupted: Energy discharge (-30). 02209_ X >MNC7:>ZOQZ3SKEKF 02225_ Lgt. Ion Engine destroyed. Map ----- +----------------------------------------------------+ | ????????????????????????????# ## # # #?????? | | ????????????????????????????# ???????#### #?????? | | ????????????????????????????????????????# ####??? | | ????????????????????????????????????????# ##?? | | ????????????????????????????????????????# # #?? | | ????????????????????????????????????????#### ##?? | | ???????????????????????????????????????????# #??? | | ???????????????????????????????????????????# ##?? | | ?????????????????????????????????????????### #?? | | ????????????????????????????????????????## ##?? | | ????????????????????????????????????????# ###? | | ????????????????????????????????????????# #? | | ????????????????????????????????????????## ##? | | ?????????????????????????????????????????# ####?? | | ?????????????????????????????????????????# ##???? | | ?????????????????????????????????????????# ###?? | | ?????????????????????????????????????????# #?? | | ?????????????????????????????????????????# #?? | | ?????????????????????????????????????????## #?? | | ??????????????????????####???????????????### ##?? | | ?????????????????????## ##??????###?##### # #??? | | ????????????????????## #???#### ### #??? | | ????????????????????# ##### ## R #??? | | ???????????????####### # # ## #??? | | ??????????????## ## R ### #??? | | ?????????????## ## @ #### ##?? | | ?????????????# # ## ### #?? | | ?????????????# # ##### #?? | | ?????????????# & ### ##???# " ##?? | | ????????????## & ## ## # #???# ##"###?? | | ????????????# ###### ##???## ### ""##? | | ###??????##### ##???# ###??#### #"""#? | | ##?????# ###### ##?????# "########""#"##? | | #?????# ##?## &###?#### "## ##"""#""##?? | | #???### #??## & &### # # #" "####??? | | #??## ""##?# "" # ## ##""#"#????? | | ###??# """"" ## # " ## ## ##### ###????? | | ##??### """"" "## "###" ## #???""# #??? | | #??## ####"" " "#??#### #??#""" ##??? | | #### ###??##""" " "#??## ###??#######???? | | ##?????#" ""####?# ##??????????????? | | ##??????# ## "###"### ### ##???????????????? | | ####????#### "##"" ## ####????????????????? | | #######"" "" " ### #???????????????????? | | # ## # " " ##???????????????????? | | " "###" #???????????????????? | | """"" " "#?##### ##???????????????????? | | ####### #"#####" ##?????###????????????????????? | | ##?????######???####?????????????????????????????? | | ?????????????????????????????????????????????????? | +----------------------------------------------------+ Best States ------------- Heat Dissipation 35 Energy Generation 10 Energy Capacity 250 Matter Stores 300 Matter Capacity 300 Sight Range 16 Terrain Scan Density 10 Armor Coverage 150 Evasion (%) 40 Recoil Reduction 2 Item Schematics ----------------- None Robot Schematics ------------------ None Fabricated ------------ Nothing Alien Tech Used ----------------- None Achievements -------------- Quantum Hacking Challenges ------------ None Game ------ Seed TiamatCryofiberSplitter Manual? 0 Play Time 00:20:00 Cumulative 17.0 hours Start 2024.08.14 @ 07:16:13 End 2024.08.14 @ 07:33:45 Sessions 1 Manual Loads 0 Difficulty Rogue Special Mode None Game No. 31 Rogue 31 Adventurer 0 Explorer 0 Win Type - Total 0 Types 0/0/0/0/0/0/0/0/0 Lore% 28 Gallery% 20 Achievement% 19 Wizard Run 0 Options --------- Layout 2 ASCII 0 Keyboard 1 Movement Arrows Keybinds 0 Fullscreen 2 Font 32/SmallcapsGlow Map View 50x44 Zoom Use 0% Tactical HUD 1 Map Filters NONE Filters NONE Steam 1 RUN: 73a900a7-2915-4a19-a87e-a19c1321dae4